Cogmind - Beta 16.1 @@@ ROGUE MODE // 2026.04.04 @ 11:24:35 Player: Milkman Result: Destroyed by PQ-4LF(R) with Subdweller Machine Gun Performance ------------- Evolutions (0) 0 Regions Visited (2) 400 Robots Destroyed (9) 45 Value Destroyed (175) 175 Prototype IDs (0) 0 Alien Tech Used (0) 0 Bonus (0) 0 TOTAL SCORE: 620 Bonus ------- None Cogmind --------- Core Integrity 0/250 Matter 300/300 Energy 98/100 System Corruption 0% Temperature Cool (0) Movement Core (1350) Ox26 Location -10/Subcaves Parts ------- > --- POWER (1) -------- (None) > --- PROPULSION (2) --- (None) > --- UTILITY (2) ------ Huge Storage Unit > --- WEAPON (2) ------- (None) > --- INVENTORY (25) --- Aluminum Leg Aluminum Leg Sensor Array Scrap Shield Scrap Shield Fragment (49) Scrap Shield Fragment (47) Peak State ------------ > --- POWER ------------ Light Ion Engine > --- PROPULSION ------- Wheel Wheel > --- UTILITY ---------- Huge Storage Unit ECM Suite > --- WEAPON ----------- Beam Cannon Barrage Gun > --- INVENTORY -------- Aluminum Leg Aluminum Leg Sensor Array Scrap Shield Assault Rifle Grenade Launcher Scrap Shield Fragment Scrap Shield Fragment [Rating: 10] Favorites ----------- Power Light Ion Engine Engine Light Ion Engine Propulsion Aluminum Leg Leg Aluminum Leg Wheel Wheel Utility ECM Suite Device ECM Suite Storage Huge Storage Unit Weapon Assault Rifle Energy Gun Small Laser Energy Cannon Beam Cannon Ballistic Gun Assault Rifle Launcher Grenade Launcher Build | -11 -10 -10 ------- Run | Yrd Mat Sub Slots Evolved . | . . . Power . | . . . Propulsion . | . . . Utility . | . . . Weapon . | . . . Parts Attached 14 | 5 7 2 Power 2 | 1 1 . Engine 2 | 1 1 . Core . | . . . Reactor . | . . . Propulsion 4 | 2 2 . Treads . | . . . Leg 2 | 2 . . Wheel 2 | . 2 . Hover . | . . . Flight . | . . . Utility 3 | . 3 . Device 2 | . 2 . Storage 1 | . 1 . Processor . | . . . Hackware . | . . . Protection . | . . . Artifact . | . . . Weapon 5 | 2 1 2 Energy Gun 1 | 1 . . Energy Cannon 1 | . 1 . Ballistic Gun 2 | 1 . 1 Ballistic Cannon . | . . . Launcher 1 | . . 1 Special Weapon . | . . . Impact Weapon . | . . . Slashing Weapon . | . . . Piercing Weapon . | . . . Special Melee Weapon . | . . . Unidentified Prototypes . | . . . Parts Lost 9 | . 1 8 Power 2 | . 1 1 Propulsion 2 | . . 2 Utility 1 | . . 1 Weapon 4 | . . 4 Highest Loss Streak 8 | . 1 8 To Critical Strikes . | . . . Average Backups 3 | 2 4 5 Power . | . . . Propulsion 1 | 1 2 2 Utility . | . . 2 Weapon 1 | . 1 1 Tool/Special . | . . . Unused Backups 2 | . 1 1 Power . | . . . Propulsion . | . . . Utility 1 | . . 1 Weapon 1 | . 1 . Tool/Special . | . . . Average Slot Usage (%) 85 | . 84 91 Engine 12 | . 12 12 Leg 18 | . 23 . Wheel 8 | . 4 25 Device 11 | . 11 11 Storage 4 | . 2 14 Energy Cannon 12 | . 13 11 Ballistic Gun 13 | . 14 12 Peak Build Rating 10 | 5 7 10 Average Rating 5 | 3 5 7 On Entrance 4 | . 5 7 Avg Prop Armor Cover (%) . | . . . Naked Turns . | . . . Heaviest Build 91 | 6 90 91 Greatest Support 20 | 20 20 20 Greatest Overweight (x) 26 | . 4 26 Average Overweight (x) 1 | . . 4 Largest Inventory Capacity 25 | 5 25 25 Average Capacity 10 | 5 8 25 Most Carried 9 | 5 5 9 Average Carried 4 | 2 4 7 Final Capacity 25 | 5 25 25 Final Carried 7 | 3 4 7 Class Distribution -------------------- 100% | Mutant Dominant Class ---------------- Mutant | -10/Materials Mutant | -10/Subcaves Resources | -11 -10 -10 ----------- Run | Yrd Mat Sub Matter Collected 408 | 259 107 42 Remotely . | . . . Salvage Created 217 | 39 132 46 Parts 22 | 1 16 5 Haulers Intercepted . | . . . Recyclers Shooed . | . . . Parts Field Recycled . | . . . Retrieved Matter . | . . . Parts Self-Destructed . | . . . Prevented . | . . . Parts Restored . | . . . Kills | -11 -10 -10 ------- Run | Yrd Mat Sub Combat Hostiles Destroyed 6 | 1 4 1 Guns 3 | 1 2 . Cannons 2 | . 2 . AOE 1 | . . 1 Classes Destroyed 7 | 1 4 2 Builder 1 | . 1 . Operator 1 | . 1 . Watcher 1 | . 1 . Swarmer 3 | . 3 . Grunt 2 | 1 1 . Artisan 1 | . . 1 Subdweller 1 | . . 1 Best Kill Streak 4 | 1 4 1 Combat Bots Only 3 | 1 3 1 Max Kills in Single Turn 2 | 1 1 2 Gunslinging . | . . . Exploded 1 | . . 1 Melee . | . . . Uniques/NPCs Destroyed . | . . . Combat | -11 -10 -10 -------- Run | Yrd Mat Sub Hostile Shots Fired 66 | 4 25 37 Missed 21 | 3 10 8 Hits 45 | 1 15 29 Projectile 45 | 1 15 29 AOE 2 | . . 2 Damage Taken 903 | 11 116 776 Core 257 | . 29 228 Absorbed by Shields . | . . . Core Remaining (%) 100 | 100 . . Volleys Fired 23 | 3 14 6 Largest 2 | 2 2 2 Hottest 88 | 60 80 88 Shots Fired 44 | 6 28 10 Gun 26 | 6 14 6 Cannon 17 | . 14 3 Launcher 1 | . . 1 Special . | . . . Kinetic 23 | 3 14 6 Thermal 20 | 3 14 3 Explosive 1 | . . 1 Electromagnetic . | . . . Robot Hit Streak 7 | 1 4 7 Robot Miss Streak 2 | 2 2 1 Penetration Max . | . . . Secondary Targets . | . . . Shots Hit Robots 26 | 2 16 8 Core Hits 16 | 2 8 6 Critical Kills . | . . . Critical Parts Destroyed . | . . . Critical Strikes . | . . . Melee Attacks . | . . . Impact . | . . . Slashing . | . . . Piercing . | . . . Sneak Attacks . | . . . Combat Hostiles . | . . . Follow-up Attacks . | . . . Damage Inflicted 687 | 36 294 357 Guns 220 | 36 119 65 Cannons 192 | . 175 17 Explosions 275 | . . 275 Melee . | . . . Ramming . | . . . Kinetic 208 | 24 119 65 Thermal 204 | 12 175 17 Explosive 275 | . . 275 Electromagnetic . | . . . Impact . | . . . Slashing . | . . . Piercing . | . . . Highest Corruption . | . . . Average Corruption . | . . . Corruption Purged . | . . . Corruption Blocked . | . . . Overload Shots . | . . . Overflow Damage . | . . . Projectiles . | . . . Explosions . | . . . Melee . | . . . Knockbacks . | . . . Impact . | . . . Kinetic . | . . . Secondary . | . . . Self-Inflicted Damage 37 | . . 37 Shots 1 | . . 1 Rammed . | . . . Targets Rammed . | . . . Kicked . | . . . Crushed . | . . . Highest Temperature 144 | 6 144 17 Average Temperature 44 | 6 48 15 Received Heat Transfer 78 | 6 12 60 Siege Activations . | . . . Martial Activations . | . . . Shielding Activations . | . . . Robots Disrupted . | . . . Combat Hostiles . | . . . Robots Corrupted . | . . . Combat Hostiles . | . . . Parts Fried . | . . . Impact Corruptions . | . . . Robots Melted . | . . . Combat Hostiles . | . . . Parts Melted . | . . . Heat Transferred 432 | 25 370 37 Parts Sabotaged . | . . . Parts Stolen . | . . . Parts Stripped . | . . . Power Chain Reactions . | . . . Alert | -11 -10 -10 ------- Run | Yrd Mat Sub Maximum Alert Level . | . . . Low Security (%) 100 | 100 100 . Level 1 . | . . . Level 2 . | . . . Level 3 . | . . . Level 4 . | . . . Level 5 . | . . . High Security . | . . . Max Security . | . . . Peak Influence 67 | 20 67 . Initial 6 | . 6 . Average 13 | 1 15 . Influence Increases 139 | 20 119 . Destroy 0b10 Robot/C 100 | 20 80 . Destroy 0b10 Robot/NC 15 | . 15 . Destroy Leader 22 | . 22 . Successful Hack 2 | . 2 . Influence Decreases 139 | 10 129 . Entered New Map 4 | . 4 . Time Decay 125 | 10 115 . Lost Part 10 | . 10 . Squads Dispatched 1 | . 1 . Investigation 1 | . 1 . Extermination . | . . . Reinforcement . | . . . Assault . | . . . Garrison . | . . . Intercept . | . . . Searches Triggered . | . . . Construction Impeded . | . . . Haulers Reinforced . | . . . Active Scanning Responses . | . . . Cargo Convoy Interrupts . | . . . Stealth | -11 -10 -10 --------- Run | Yrd Mat Sub Distress Signals 1 | . 1 . Communications Jammed . | . . . Distress Signals . | . . . Times Spotted 20 | 1 9 10 Peak Tracking Total 8 | 1 5 8 Tactical Retreats 1 | . 1 . ECM-based Alert Blocks 1 | . 1 . Traps | -11 -10 -10 ------- Run | Yrd Mat Sub Traps Triggered 1 | . 1 . Indirectly . | . . . Trap Hack Attempts . | . . . Triggered . | . . . Disarmed . | . . . Reprogrammed . | . . . Reused . | . . . Traps Extracted . | . . . Installed . | . . . Triggered . | . . . Machines | -11 -10 -10 ---------- Run | Yrd Mat Sub Machines Disabled . | . . . Max in Single Turn . | . . . Machines Repaired . | . . . Machines Dismantled . | . . . Machines Sabotaged . | . . . Overloaded Fab Kills . | . . . Hacking | -11 -10 -10 --------- Run | Yrd Mat Sub Machines Accessed 5 | . 5 . Terminals 4 | . 4 . Fabricators . | . . . Repair Stations . | . . . Recycling Units 1 | . 1 . Scanalyzers . | . . . Garrison Access . | . . . Total Hacks 11 | . 11 . Successful 9 | . 9 . Failed 2 | . 2 . Catastrophic . | . . . Database Lockouts . | . . . Manual . | . . . Terminals 9 | . 9 . Fabricators . | . . . Repair Stations . | . . . Recycling Units 2 | . 2 . Scanalyzers . | . . . Garrison Access . | . . . Terminal Hacks 7 | . 7 . Record 3 | . 3 . Alert Level 3 | . 3 . Zone Layout 1 | . 1 . Fabricator Hacks . | . . . Repair Station Hacks . | . . . Recycling Unit Hacks 2 | . 2 . Process 1 | . 1 . Report Inventory 1 | . 1 . Scanalyzer . | . . . Garrison Access Hacks . | . . . Unauthorized Hacks . | . . . Terminals . | . . . Fabricators . | . . . Repair Stations . | . . . Recycling Units . | . . . Scanalyzers . | . . . Garrison Access . | . . . Data Cores Recovered . | . . . Used . | . . . Hacking Detections 1 | . 1 . Full Trace Events . | . . . Feedback Events . | . . . Feedback Blocked . | . . . Robot Schematics Acquired . | . . . Robots Built . | . . . Authchips . | . . . Time . | . . . Total Robot Build Rating . | . . . Part Schematics Acquired . | . . . Parts Built . | . . . Authchips . | . . . Time . | . . . Total Part Build Rating . | . . . Part Studies Acquired . | . . . Parts Repaired . | . . . Time . | . . . Parts Recycled . | . . . Recycled Matter . | . . . Retrieved Matter . | . . . Retrieved Components . | . . . Parts Scanalyzed . | . . . Part Schematics Acquired . | . . . Parts Damaged . | . . . Bothacking | -11 -10 -10 ------------ Run | Yrd Mat Sub Used RIF Installer . | . . . Robots Hacked . | . . . Non-combat . | . . . Combat . | . . . Robot Hacks Applied . | . . . Relay Couplers Released . | . . . Fabnet Peak Effective % . | . . . Robots Rewired . | . . . Allies Hacked . | . . . Hacks Repelled . | . . . Allies | -11 -10 -10 -------- Run | Yrd Mat Sub Total Allies . | . . . Largest Group . | . . . Highest-Rated Group . | . . . Highest-Rated Ally . | . . . Total Orders . | . . . Ally Attacks . | . . . Total Damage . | . . . Kills . | . . . Allies Corrupted . | . . . Allies Melted . | . . . Intel | -11 -10 -10 ------- Run | Yrd Mat Sub Active Infowar (turns) 369 | . 268 101 Sensors 140 | . 140 . ECM 369 | . 268 101 Robot Analysis Total . | . . . Derelict Logs Recovered . | . . . Drone Launches . | . . . Drone Recoveries . | . . . Exploration | -11 -10 -10 ------------- Run | Yrd Mat Sub Turns Passed 750 | 88 548 114 Spaces Moved 479 | 67 352 60 Core 21 | 20 . 1 Treads . | . . . Legs 335 | 47 288 . Wheels 123 | . 64 59 Hover . | . . . Flight . | . . . Fastest Speed 50 | 50 120 140 Average Speed 124 | 99 123 160 Slowest Speed 1350 | 120 140 1350 Overloaded Moves . | . . . Propulsion Burnouts . | . . . Robots Hopped . | . . . Potential Cave-ins . | . . . Cave-ins Triggered . | . . . Exploration Rate (%) 21 | 7 50 6 Regions Visited 2 Branch Regions 1 Pre-discovered Areas . | . . . Known Exits Taken . | . . . Unknown Exits Taken 2 | 1 1 . Scrap Searched 1 | . . 1 Spaces Dug . | . . . Terrain Destroyed 8 | . . 8 Melee . | . . . Projectile . | . . . AOE 8 | . . 8 Terrain Rammed . | . . . Walls Destroyed . | . . . Machines Disabled . | . . . Actions | -11 -10 -10 --------- Run | Yrd Mat Sub Total 596 | 82 436 78 Wait 59 | . 56 3 Move 477 | 66 351 60 Hop . | . . . Pick Up 18 | 8 6 4 Fast Attach . | . . . Attach 11 | 5 3 3 Detach 1 | . . 1 Swap 5 | . 4 1 Drop 2 | . 2 . Fire 23 | 3 14 6 Melee . | . . . Ram . | . . . Kick . | . . . Crush . | . . . Escape Stasis . | . . . Rewire . | . . . Trap . | . . . Miscellaneous . | . . . Route ------- -11/Scrapyard -10/Materials (discovered 2 exits: [*Mat] / [*Sub]) -10/Subcaves History --------- Turn | Location | Event 2 | -11/Scrapyard | Met Revision 17 65 | -11/Scrapyard | Discovered new exit (range 8) 89 | -11/Scrapyard | Entered Materials 304 | -10/Materials | Build established: Mutant 430 | -10/Materials | Discovered new exit (range 3) 592 | -10/Materials | Discovered new exit (range 9) 637 | -10/Materials | Entered Subcaves 638 | -10/Subcaves | Approached by a straggling Scientist 733 | -10/Subcaves | Ambushed by swarm of Subdwellers 739 | -10/Subcaves | Ambushed by Subdwellers from Twisted Machinery 740 | -10/Subcaves | Core integrity fell below 50% 750 | -10/Subcaves | Core integrity fell below 20% 751 | -10/Subcaves | Destroyed by PQ-4LF(R) with Subdweller Machine Gun Last Messages --------------- AO-G3R(R) destroyed. [Achievement: Let's See Who's Tougher] 7E-39U(R) destroyed. 6Z-NVX(u) cries out in pain. 6Z-NVX(u) destroyed. 23-5GN(R) destroyed. Wheel destroyed. AF-KBD(R) angrily emerges from the Twisted Machinery. AF-KBD(R): "LEAVESUB!" Grenade Launcher destroyed. Assault Rifle destroyed. Acquired 13 matter. AC-2HC(R) affixes Scrap Shield Fragment to Scrap Shield. HV Slug penetrates YR-UL8(R). YR-UL8(R) suffers critical hit (Destroy). YR-UL8(R) destroyed. HV Slug penetrates Wall. [Achievement: First Step to Greatness] Map ----- +----------------------------------------------------+ | | | | | | | | | | | ?????????????????????????????????????????????????? | | ?????????????????????????????????????????????????? | | ?????????????????????????????????????????????????? | | ?????????????????????????????????????????????????? | | ?????????????????????????????????????????????????? | | ?????????????????????????????????????????????????? | | ?????????????????????????????????????????????????? | | ?????????????????????????????????????????????????? | | ?????????????????????????????????????????????????? | | ?????????????#######?????????????????????????????? | | ?????????????#"& "#?????????????????????????????? | | ????????????##&## %###???????????????????????????? | | ????????????#" "#"" #???????????????????????????? | | ???????????##" " ##??????????????????????????? | | ??????###### ! #??????????#???????????????? | | ?????## ## %! #????####? #???????????????? | | ?????# # "##?###*""#% ????#???????????? | | ##???# "###=&R"""""" #???????????? | | ##??# # ;##!&RR"#"*= #???????????? | | #### ### !h%!&&%#??????????????????? | | ##?# "## %=% ]@R!#&#??????????????????? | | ###??###?########=!##&#???????????????????? | | ## ##???????????????####?##???????????????????? | | ### #??????????????????????????????????????????? | | ##?####??????????????????????????????????????????? | | #????????????????????????????????????????????????? | | ?????????????????????????????????????????????????? | | ?????????????????????????????????????????????????? | | ?????????????????????????????????????????????????? | | ?????????????????????????????????????????????????? | | ?????????????????????????????????????????????????? | | ?????????????????????????????????????????????????? | | ?????????????????????????????????????????????????? | | ?????????????????????????????????????????????????? | | ?????????????????????????????????????????????????? | | ?????????????????????????????????????????????????? | | ?????????????????????????????????????????????????? | | ?????????????????????????????????????????????????? | | ?????????????????????????????????????????????????? | | ?????????????????????????????????????????????????? | | ?????????????????????????????????????????????????? | | ?????????????????????????????????????????????????? | | ?????????????????????????????????????????????????? | | ?????????????????????????????????????????????????? | | ?????????????????????????????????????????????????? | +----------------------------------------------------+ Best States ------------- Heat Dissipation 25 Energy Generation 10 Energy Capacity 125 Matter Stores 300 Matter Capacity 300 Sight Range 16 Robot Scan Range 14 Terrain Scan Density 10 ECM Strength 1 Evasion (%) 55 Item Schematics ----------------- None Robot Schematics ------------------ None Fabricated ------------ Nothing Repaired ---------- Nothing Studied --------- None Alien Tech Used ----------------- None Achievements -------------- First Step to Greatness Let's See Who's Tougher There's More Where That Came From Challenges ------------ None Game ------ Seed ImprinterIonicJammer Manual? 0 Play Time 00:23:18 Cumulative 0.3 hours Start 2026.04.04 @ 10:38:04 End 2026.04.04 @ 11:24:35 Sessions 1 Manual Loads 0 Difficulty Rogue Special Mode None Game No. 1 Rogue 1 Adventurer 0 Explorer 0 Win Type - Total 0 Types 0/0/0/0/0/0/0/0/0/0 Lore% 0 Gallery% 1 Achievement% 0 Wizard Run 0 Options --------- Layout 1 ASCII 0 Keyboard 0 Movement Mouse Keybinds 0 Fullscreen 1 Font 24/Smallcaps Map View 50x40 Zoom Use 0% Tactical HUD 0 Map Filters NONE Filters NONE Steam 0 RUN: 32567a6c-366f-4518-87dd-42b47ba925eb